Cogmind - Beta 14 --- EXPLORER MODE // 2024.10.20 @ 22:45:34 Player: Tekuflat Result: Self-destructed Performance ------------- Evolutions (8) 4000 Regions Visited (10) 2000 Robots Destroyed (129) 645 Value Destroyed (5911) 5911 Prototype IDs (10) 200 Alien Tech Used (0) 0 Bonus (315) 315 TOTAL SCORE: 13071 Bonus ------- High Alert Combat Kills 87 Follower Combat Kills 228 Cogmind --------- Core Integrity 956/1450 Matter 141/300 Energy 273/280 System Corruption 3% Temperature Critical (531) Movement Core (3150) Ox62 Location -2/Research Parts ------- > --- POWER (2) -------- Light Quantum Reactor Light Quantum Reactor > --- PROPULSION (4) --- Armored Huge Wheel Armored Huge Wheel > --- UTILITY (14) ----- Advanced Cooling System Huge Storage Unit Advanced Sensor Array Improved Signal Interpreter Advanced Signal Interpreter Advanced Terrain Scan Processor Improved Target Analyzer Advanced Target Analyzer Precision Energy Filter Heavy Armor Plating Layered Medium Armor Plating Graphene Brace Graphene Brace > --- WEAPON (4) ------- Enhanced Quantum Rifle Nova Cannon Enhanced Nova Cannon Enhanced Nova Cannon > --- INVENTORY (25) --- Quantum Reactor Quantum Reactor Light Quantum Reactor Light Quantum Reactor VSS Leg Armored Leg Armored Leg Enhanced Armored Leg Centrium Wheel Improved Diametric Drive Advanced Heat Sink Large Storage Unit Advanced Sensor Array Advanced Signal Interpreter Improved Arc Projector Quantum Rifle Enhanced Nova Cannon Heavy Gauss Cannon Linear Accelerator Gamma Bomb Array Peak State ------------ > --- POWER ------------ Light Quantum Reactor Light Quantum Reactor > --- PROPULSION ------- Armored Huge Wheel Armored Huge Wheel > --- UTILITY ---------- Advanced Cooling System Huge Storage Unit Advanced Sensor Array Improved Signal Interpreter Advanced Signal Interpreter Advanced Terrain Scan Processor Improved Target Analyzer Advanced Target Analyzer Precision Energy Filter Heavy Armor Plating Layered Medium Armor Plating Graphene Brace Graphene Brace > --- WEAPON ----------- Nova Cannon Enhanced Nova Cannon Enhanced Nova Cannon Enhanced Nova Cannon > --- INVENTORY -------- Compact Particle Reactor Quantum Reactor Quantum Reactor Light Quantum Reactor Light Quantum Reactor VSS Leg Armored Leg Armored Leg Enhanced Armored Leg Centrium Wheel Improved Diametric Drive Advanced Heat Sink Large Storage Unit Advanced Sensor Array Advanced Signal Interpreter High-powered Shock Rifle High-powered Shock Rifle Improved Arc Projector Advanced Beam Rifle Wave Gun Quantum Rifle Enhanced Quantum Rifle Heavy Gauss Cannon Linear Accelerator Heavy Shock Bomb Launcher [Rating: 153] Favorites ----------- Power Improved Deuterium Engine Engine Improved Deuterium Engine Power Core Neutrino Core Reactor Particle Reactor Propulsion Armored Huge Wheel Leg Improved Aluminum Leg Wheel Armored Huge Wheel Utility Huge Storage Unit Device Improved Sensor Array Storage Huge Storage Unit Processor Targeting Computer Protection Layered Medium Armor Plating Weapon EM Pulse Gun Energy Gun EM Pulse Gun Energy Cannon Enhanced Nova Cannon Ballistic Gun Flak Gun Ballistic Cannon Gauss Cannon Launcher Mini Grenade Launcher Build | -11 -10 -9 -8 -7 -7 -6 -5 -4 -3 -2 ------- Run | Yrd Mat Mat Mat Fac Sto Fac Fac Fac Res Res Slots Evolved 17 | . 1 2 2 2 . 2 2 2 2 2 Power 1 | . . . . . . . . 1 . . Propulsion 2 | . . . . 2 . . . . . . Utility 12 | . . 2 2 . . 2 2 . 2 2 Weapon 2 | . 1 . . . . . . 1 . . Parts Attached 146 | 7 4 8 12 6 22 15 33 3 17 19 Power 23 | 1 . 3 1 1 2 . 4 1 5 5 Engine 8 | 1 . 3 1 1 2 . . . . . Core 3 | . . . . . . . 2 1 . . Reactor 12 | . . . . . . . 2 . 5 5 Propulsion 20 | 2 . 2 1 3 5 3 1 . 1 2 Treads . | . . . . . . . . . . . Leg 14 | 2 . 2 1 3 5 1 . . . . Wheel 6 | . . . . . . 2 1 . 1 2 Hover . | . . . . . . . . . . . Flight . | . . . . . . . . . . . Utility 46 | 2 2 2 5 . 4 6 14 1 4 6 Device 26 | 1 2 2 2 . 1 3 10 . 3 2 Storage 5 | 1 . . . . 1 1 2 . . . Processor 8 | . . . 2 . 1 1 1 . 1 2 Hackware . | . . . . . . . . . . . Protection 7 | . . . 1 . 1 1 1 1 . 2 Artifact . | . . . . . . . . . . . Weapon 57 | 2 2 1 5 2 11 6 14 1 7 6 Energy Gun 29 | 2 2 1 2 . 2 6 8 1 2 3 Energy Cannon 9 | . . . 1 . 2 . 1 . 2 3 Ballistic Gun 5 | . . . 1 . 3 . 1 . . . Ballistic Cannon 10 | . . . . 2 2 . 3 . 3 . Launcher 4 | . . . 1 . 2 . 1 . . . Special Weapon . | . . . . . . . . . . . Impact Weapon . | . . . . . . . . . . . Slashing Weapon . | . . . . . . . . . . . Piercing Weapon . | . . . . . . . . . . . Special Melee Weapon . | . . . . . . . . . . . Unidentified Prototypes 8 | . . . . 1 4 . 1 . 2 . Parts Lost 18 | . . . 2 . 2 1 5 . 8 . Power 1 | . . . . . . . . . 1 . Propulsion 3 | . . . . . 1 . . . 2 . Utility 10 | . . . 1 . 1 1 5 . 2 . Weapon 4 | . . . 1 . . . . . 3 . Highest Loss Streak 5 | . . . 1 . 1 1 1 . 5 . To Critical Strikes . | . . . . . . . . . . . Average Slot Usage (%) 90 | . 100 100 98 98 99 85 79 88 87 82 Engine 4 | . 12 10 8 7 7 6 1 . . . Reactor 1 | . . . . . . . 1 . 7 8 Leg 11 | . 25 20 16 26 27 12 . . . . Wheel 4 | . . . . . . 6 11 10 8 7 Device 21 | . 12 30 25 21 15 18 22 25 27 19 Storage 7 | . 12 10 8 7 7 6 8 10 6 4 Processor 11 | . . . 11 14 14 10 11 10 13 20 Protection 3 | . . . 3 . 5 6 3 4 3 4 Energy Gun 13 | . 37 30 20 16 4 17 12 15 5 2 Energy Cannon 2 | . . . 3 . . . . 5 8 12 Ballistic Gun 1 | . . . . . 6 . . . . . Ballistic Cannon 2 | . . . . 4 8 . 2 . 3 1 Peak Build Rating 153 | 7 9 14 24 40 46 61 87 99 127 153 Average Rating 63 | 4 8 13 20 31 42 54 73 97 118 139 On Entrance 43 | . 7 8 14 23 40 45 60 83 99 99 Naked Turns . | . . . . . . . . . . . Heaviest Build 194 | 18 20 27 35 41 50 121 127 140 174 194 Greatest Support 63 | 20 20 23 23 56 61 63 56 56 56 56 Greatest Overweight (x) 6 | 5 . 1 1 1 1 2 2 2 5 6 Average Overweight (x) 1 | . . . 1 . . 1 1 2 2 2 Largest Inventory Capacity 25 | 10 10 10 10 10 15 25 25 25 25 25 Average Capacity 17 | 8 10 10 10 10 10 20 25 25 25 25 Most Carried 25 | 5 10 10 10 10 11 24 25 25 25 25 Average Carried 15 | 2 5 9 9 9 9 15 18 24 23 20 Final Capacity 25 | 10 10 10 10 10 15 25 25 25 25 25 Final Carried 25 | 3 9 10 9 10 11 18 25 24 21 20 Class Distribution -------------------- 57% | Hacker-Skirmisher 20% | Hacker-Gunner 10% | Scavenger-Skirmisher 7% | Commander-Skirmisher Dominant Class ---------------- Hacker-Gunner | -10/Materials Hacker-Skirmisher | -9/Materials Hacker-Gunner | -8/Materials Scavenger-Skirmisher | -7/Factory Hacker-Skirmisher | -7/Storage Hacker-Skirmisher | -6/Factory Hacker-Skirmisher | -5/Factory Hacker-Skirmisher | -4/Factory Hacker-Skirmisher | -3/Research Hacker-Gunner | -2/Research Resources | -11 -10 -9 -8 -7 -7 -6 -5 -4 -3 -2 ----------- Run | Yrd Mat Mat Mat Fac Sto Fac Fac Fac Res Res Matter Collected 3230 | 167 142 231 197 92 1057 154 549 . 403 238 Remotely . | . . . . . . . . . . . Salvage Created 5565 | . 89 413 783 236 865 766 1371 90 484 468 Parts 243 | . 5 25 44 11 42 18 59 2 17 20 Haulers Intercepted 1 | . . . . . 1 . . . . . Recyclers Shooed 1 | . . . . . 1 . . . . . Parts Field Recycled . | . . . . . . . . . . . Retrieved Matter . | . . . . . . . . . . . Parts Self-Destructed . | . . . . . . . . . . . Prevented . | . . . . . . . . . . . Kills | -11 -10 -9 -8 -7 -7 -6 -5 -4 -3 -2 ------- Run | Yrd Mat Mat Mat Fac Sto Fac Fac Fac Res Res Combat Hostiles Destroyed 100 | . 2 6 13 5 23 14 23 1 8 5 Guns 55 | . 2 6 7 3 11 13 11 . 2 . Cannons 33 | . . . 3 1 11 . 9 1 4 4 AOE 8 | . . . 3 1 1 . 3 . . . Classes Destroyed 14 | . 3 1 3 1 4 1 . . 1 . Worker 8 | . . . 1 . 4 . . . 2 1 Builder 2 | . . . 1 . . . 1 . . . Hauler 1 | . . . . . 1 . . . . . Mechanic 2 | . . . . . 1 . 1 . . . Operator 2 | . . . . . 1 1 . . . . Watcher 14 | . 1 3 2 . 1 2 3 . . 2 Swarmer 10 | . 1 . . . 5 1 3 . . . Grunt 35 | . 1 2 8 2 4 7 9 . . 2 Brawler 2 | . . . 1 1 . . . . . . Duelist 4 | . . . . . . 1 3 . . . Sentry 27 | . . 4 4 1 11 2 2 1 1 1 Specialist 1 | . . . . . . . . . 1 . Hunter 6 | . . . . . 2 2 . . 2 . Programmer 15 | . . . . 1 1 1 6 . 4 2 Best Kill Streak 7 | . 1 3 7 3 6 5 5 1 7 3 Combat Bots Only 6 | . 1 2 6 3 6 5 4 1 3 2 Max Kills in Single Turn 3 | . 1 1 3 1 3 1 2 1 1 2 Gunslinging 1 | . . . . . 1 . . . . . Exploded 2 | . . . 2 1 1 . 1 . . . Melee . | . . . . . . . . . . . Uniques/NPCs Destroyed . | . . . . . . . . . . . Combat | -11 -10 -9 -8 -7 -7 -6 -5 -4 -3 -2 -------- Run | Yrd Mat Mat Mat Fac Sto Fac Fac Fac Res Res Hostile Shots Fired 885 | . 11 27 39 34 363 64 109 2 208 28 Missed 295 | . 3 9 13 14 145 22 34 . 48 7 Damage Taken 6383 | . 40 159 310 195 1237 437 1038 27 2121 819 Core 1464 | . 9 8 72 12 211 19 86 . 553 494 Absorbed by Shields . | . . . . . . . . . . . Ignored by Resistances 3411 | . 29 100 185 118 840 265 610 16 1038 210 Regen/Repaired (Parts) 294 | . . . . . 116 . . . . 178 Core Remaining (%) 88 | 100 96 98 86 . 68 97 91 100 57 . Volleys Fired 252 | . 7 20 29 10 64 28 49 2 30 13 Largest 4 | . 3 3 3 3 3 3 3 4 4 4 Hottest 473 | . 130 136 171 159 159 240 243 263 388 473 Shots Fired 759 | . 21 60 83 29 189 82 138 8 103 46 Gun 477 | . 21 60 62 22 95 82 99 6 22 8 Cannon 273 | . . . 20 7 89 . 36 2 81 38 Launcher 9 | . . . 1 . 5 . 3 . . . Special . | . . . . . . . . . . . Kinetic 218 | . . . 6 7 144 . 35 . 23 3 Thermal 403 | . 4 20 56 16 35 82 79 6 62 43 Explosive 6 | . . . 1 . 5 . . . . . Electromagnetic 132 | . 17 40 20 6 5 . 24 2 18 . Robot Hit Streak 69 | . 10 22 19 24 69 29 24 10 15 31 Robot Miss Streak 5 | . 1 2 2 2 5 2 2 . 5 1 Penetration Max 1 | . . . . . 1 . 1 . . . Secondary Targets 7 | . . . . 1 1 3 2 . . . Max Gunslinging Chain 1 | . . . . 1 1 1 1 . . . Shots Hit Robots 576 | . 15 46 65 23 139 76 110 8 59 35 Core Hits 329 | . 4 16 32 11 103 64 65 3 18 13 Critical Kills 10 | . . . . . . . 8 . 1 1 Critical Parts Destroyed 9 | . . . . . . . 8 . 1 . Critical Strikes 47 | . 1 1 2 2 8 3 20 1 7 2 Burn 13 | . 1 1 1 1 . 3 2 1 2 1 Meltdown 2 | . . . . . . . . . 1 1 Destroy 17 | . . . . . . . 16 . 1 . Blast 12 | . . . . 1 8 . 1 . 2 . Corrupt 3 | . . . 1 . . . 1 . 1 . Melee Attacks . | . . . . . . . . . . . Impact . | . . . . . . . . . . . Slashing . | . . . . . . . . . . . Piercing . | . . . . . . . . . . . Sneak Attacks . | . . . . . . . . . . . Combat Hostiles . | . . . . . . . . . . . Follow-up Attacks . | . . . . . . . . . . . Damage Inflicted 15586 | . 206 686 1358 526 3699 1991 3125 194 2341 1460 Guns 7863 | . 206 637 726 287 1592 1991 1828 134 268 194 Cannons 6251 | . . . 375 113 1721 . 643 60 2073 1266 Explosions 1376 | . . 49 243 126 304 . 654 . . . Melee . | . . . . . . . . . . . Ramming 96 | . . . 14 . 82 . . . . . Kinetic 4016 | . . . 50 113 2732 . 581 . 505 35 Thermal 8640 | . 13 245 910 357 479 1991 1629 134 1457 1425 Explosive 440 | . . . 136 . 304 . . . . . Electromagnetic 2394 | . 193 441 248 56 102 . 915 60 379 . Impact . | . . . . . . . . . . . Slashing . | . . . . . . . . . . . Piercing . | . . . . . . . . . . . Highest Corruption 11 | . . . . . 1 . 2 . 11 3 Average Corruption 1 | . . . . . 1 . 1 . 4 2 Corruption Purged . | . . . . . . . . . . . Corruption Blocked . | . . . . . . . . . . . Effects 26 | . . . . . 3 . 12 . 11 . Message Errors 6 | . . . . . 1 . 3 . 2 . Matter Fused 6 | . . . . . 1 . 3 . 2 . Heat Flow Errors 2 | . . . . . . . 1 . 1 . Energy Discharges 1 | . . . . . . . 1 . . . Parts Rejected 2 | . . . . . . . 1 . 1 . Parts Fused 1 | . . . . . . . . . 1 . Data Loss (minor) 2 | . . . . . . . 1 . 1 . Data Loss (major) 1 | . . . . . . . 1 . . . Misfires 2 | . . . . . 1 . 1 . . . Alerts 1 | . . . . . . . . . 1 . Weapon Failures 2 | . . . . . . . . . 2 . Overload Shots . | . . . . . . . . . . . Overflow Damage 281 | . . . . . 37 . 82 . 135 27 Projectiles 196 | . . . . . 34 . . . 135 27 Explosions 82 | . . . . . . . 82 . . . Melee 3 | . . . . . 3 . . . . . Knockbacks 19 | . . . . 1 5 . 8 . 4 1 Impact . | . . . . . . . . . . . Kinetic 17 | . . . . 1 4 . 8 . 3 1 Secondary 2 | . . . . . 1 . . . 1 . Self-Inflicted Damage 108 | . . . 67 . 28 . 13 . . . Shots 4 | . . . 2 . 1 . 1 . . . Rammed . | . . . . . . . . . . . Targets Rammed 9 | . . . 2 . 7 . . . . . Kicked 9 | . . . 2 . 7 . . . . . Crushed . | . . . . . . . . . . . Highest Temperature 1769 | . 192 188 534 192 156 87 54 3 1769 693 Average Temperature 213 | . 72 60 140 85 40 35 25 3 763 284 Received Heat Transfer 1701 | . 12 126 216 90 414 297 243 27 267 9 Effects 87 | . . . 14 . . . . . 48 25 Shutdowns 14 | . . . 2 . . . . . 5 7 Energy Bleed 7 | . . . . . . . . . 5 2 Interference 20 | . . . 9 . . . . . 5 6 Matter Decay 9 | . . . 1 . . . . . 5 3 Short Circuit 10 | . . . 1 . . . . . 6 3 Damage (minor) 5 | . . . 1 . . . . . 2 2 Damage (major) 18 | . . . . . . . . . 18 . Damage (core) 4 | . . . . . . . . . 2 2 Siege Activations . | . . . . . . . . . . . Robots Corrupted 1 | . . . . . 1 . . . . . Combat Hostiles . | . . . . . . . . . . . Parts Fried 11 | . . 5 . . 2 . 3 . 1 . Impact Corruptions 1 | . . . . . 1 . . . . . Robots Melted 4 | . . . . . . 1 . . 2 1 Combat Hostiles 4 | . . . . . . 1 . . 2 1 Parts Melted 37 | . . . 2 . 2 16 3 2 6 6 Heat Transferred 14926 | . 111 642 1715 742 999 4564 2897 296 1554 1406 Parts Sabotaged . | . . . . . . . . . . . Parts Stolen . | . . . . . . . . . . . Parts Stripped . | . . . . . . . . . . . Power Chain Reactions 5 | . . 1 1 1 . . 2 . . . Alert | -11 -10 -9 -8 -7 -7 -6 -5 -4 -3 -2 ------- Run | Yrd Mat Mat Mat Fac Sto Fac Fac Fac Res Res Peak Influence 494 | . 74 206 462 222 494 211 299 72 288 145 Initial 113 | . . 22 26 73 73 99 27 12 27 113 Average 136 | . 42 75 222 112 297 88 90 55 84 100 Maximum Alert Level 2 | . . 1 2 1 2 1 1 . 1 . Low Security (%) 74 | 100 100 87 36 90 24 91 86 100 87 100 Level 1 20 | . . 12 49 9 52 8 13 . 12 . Level 2 5 | . . . 13 . 22 . . . . . Level 3 . | . . . . . . . . . . . Level 4 . | . . . . . . . . . . . Level 5 . | . . . . . . . . . . . High Security . | . . . . . . . . . . . Max Security . | . . . . . . . . . . . Squads Dispatched 24 | . . . 3 1 6 2 5 . 4 3 Investigation 4 | . . . . . 2 . 2 . . . Extermination 9 | . . . . 1 1 1 2 . 2 2 Reinforcement 10 | . . . 3 . 3 1 1 . 2 . Assault . | . . . . . . . . . . . Garrison 1 | . . . . . . . . . . 1 Intercept . | . . . . . . . . . . . Searches Triggered . | . . . . . . . . . . . Construction Impeded 3 | . . . 2 . 1 . . . . . Haulers Reinforced 1 | . . . . . 1 . . . . . Active Scanning Responses . | . . . . . . . . . . . Cargo Convoy Interrupts . | . . . . . . . . . . . Stealth | -11 -10 -9 -8 -7 -7 -6 -5 -4 -3 -2 --------- Run | Yrd Mat Mat Mat Fac Sto Fac Fac Fac Res Res Distress Signals 4 | . . 1 2 . . . 1 . . . Communications Jammed 15 | . . . . . . . . . 15 . Distress Signals 1 | . . . . . . . . . 1 . Times Spotted 164 | . 5 10 21 5 36 24 32 2 20 9 Peak Tracking Total 7 | . 2 3 7 3 6 5 7 1 4 3 Tactical Retreats 8 | . . . 1 . . 2 3 . 2 . Traps | -11 -10 -9 -8 -7 -7 -6 -5 -4 -3 -2 ------- Run | Yrd Mat Mat Mat Fac Sto Fac Fac Fac Res Res Traps Triggered 15 | . 1 1 1 . 2 2 5 . 2 1 Indirectly . | . . . . . . . . . . . Trap Hack Attempts . | . . . . . . . . . . . Triggered . | . . . . . . . . . . . Disarmed . | . . . . . . . . . . . Reprogrammed . | . . . . . . . . . . . Reused . | . . . . . . . . . . . Traps Extracted . | . . . . . . . . . . . Installed . | . . . . . . . . . . . Triggered . | . . . . . . . . . . . Machines | -11 -10 -9 -8 -7 -7 -6 -5 -4 -3 -2 ---------- Run | Yrd Mat Mat Mat Fac Sto Fac Fac Fac Res Res Machines Disabled 18 | . 1 1 2 . 9 . 2 . 2 1 Max in Single Turn 2 | . 1 1 1 . 1 . 2 . 1 1 Machines Repaired . | . . . . . . . . . . . Machines Dismantled . | . . . . . . . . . . . Machines Sabotaged . | . . . . . . . . . . . Overloaded Fab Kills . | . . . . . . . . . . . Hacking | -11 -10 -9 -8 -7 -7 -6 -5 -4 -3 -2 --------- Run | Yrd Mat Mat Mat Fac Sto Fac Fac Fac Res Res Machines Accessed 19 | . 1 2 . 1 9 2 3 . . 1 Terminals 15 | . 1 2 . 1 7 1 3 . . . Fabricators . | . . . . . . . . . . . Repair Stations 4 | . . . . . 2 1 . . . 1 Recycling Units . | . . . . . . . . . . . Scanalyzers . | . . . . . . . . . . . Garrison Access . | . . . . . . . . . . . Total Hacks 39 | . 4 6 . 1 15 6 5 . . 2 Successful 25 | . 3 4 . 1 9 4 2 . . 2 Failed 14 | . 1 2 . . 6 2 3 . . . Catastrophic 1 | . . . . . 1 . . . . . Database Lockouts . | . . . . . . . . . . . Manual . | . . . . . . . . . . . Terminals 31 | . 4 6 . 1 11 4 5 . . . Fabricators . | . . . . . . . . . . . Repair Stations 8 | . . . . . 4 2 . . . 2 Recycling Units . | . . . . . . . . . . . Scanalyzers . | . . . . . . . . . . . Garrison Access . | . . . . . . . . . . . Terminal Hacks 21 | . 3 4 . 1 7 4 2 . . . Robot Analysis 1 | . . 1 . . . . . . . . Prototype ID Bank 1 | . 1 . . . . . . . . . Open Door 4 | . . . . . 4 . . . . . Open DSF 2 | . . . . 1 . . 1 . . . Emergency Access Points 3 | . . 1 . . . 1 1 . . . Alert Level 1 | . . . . . 1 . . . . . Unreport Threat 2 | . . . . . . 2 . . . . Patrol Status 1 | . . . . . . 1 . . . . Recall Investigation 1 | . . 1 . . . . . . . . Recall Assault 1 | . . . . . 1 . . . . . Hauler Manifests 3 | . 1 1 . . 1 . . . . . Registered Components 1 | . 1 . . . . . . . . . Fabricator Hacks . | . . . . . . . . . . . Repair Station Hacks 4 | . . . . . 2 . . . . 2 Scan Component 2 | . . . . . 1 . . . . 1 Repair 2 | . . . . . 1 . . . . 1 Recycling Unit Hacks . | . . . . . . . . . . . Scanalyzer . | . . . . . . . . . . . Garrison Access Hacks . | . . . . . . . . . . . Unauthorized Hacks . | . . . . . . . . . . . Terminals . | . . . . . . . . . . . Fabricators . | . . . . . . . . . . . Repair Stations . | . . . . . . . . . . . Recycling Units . | . . . . . . . . . . . Scanalyzers . | . . . . . . . . . . . Garrison Access . | . . . . . . . . . . . Data Cores Recovered 2 | . . . . . 1 1 . . . . Used . | . . . . . . . . . . . Hacking Detections 14 | . 1 2 . . 6 2 2 . . 1 Full Trace Events 2 | . . . . . 2 . . . . . Feedback Events . | . . . . . . . . . . . Feedback Blocked . | . . . . . . . . . . . Robot Schematics Acquired . | . . . . . . . . . . . Robots Built . | . . . . . . . . . . . Authchips . | . . . . . . . . . . . Time . | . . . . . . . . . . . Total Robot Build Rating . | . . . . . . . . . . . Part Schematics Acquired . | . . . . . . . . . . . Parts Built . | . . . . . . . . . . . Authchips . | . . . . . . . . . . . Time . | . . . . . . . . . . . Total Part Build Rating . | . . . . . . . . . . . Parts Repaired 2 | . . . . . 1 . . . . 1 Time 36 | . . . . . 14 . . . . 22 Parts Recycled . | . . . . . . . . . . . Recycled Matter . | . . . . . . . . . . . Retrieved Matter . | . . . . . . . . . . . Retrieved Components . | . . . . . . . . . . . Parts Scanalyzed . | . . . . . . . . . . . Part Schematics Acquired . | . . . . . . . . . . . Parts Damaged . | . . . . . . . . . . . Bothacking | -11 -10 -9 -8 -7 -7 -6 -5 -4 -3 -2 ------------ Run | Yrd Mat Mat Mat Fac Sto Fac Fac Fac Res Res Used RIF Installer . | . . . . . . . . . . . Robots Hacked . | . . . . . . . . . . . Non-combat . | . . . . . . . . . . . Combat . | . . . . . . . . . . . Robot Hacks Applied . | . . . . . . . . . . . Relay Couplers Released 4 | . . . . . 4 . . . . . Programmers 4 | . . . . . 4 . . . . . Fabnet Peak Effective % . | . . . . . . . . . . . Robots Rewired . | . . . . . . . . . . . Allies Hacked . | . . . . . . . . . . . Hacks Repelled . | . . . . . . . . . . . Allies | -11 -10 -9 -8 -7 -7 -6 -5 -4 -3 -2 -------- Run | Yrd Mat Mat Mat Fac Sto Fac Fac Fac Res Res Total Allies 10 | . . . . . 10 . . . . . Largest Group 10 | . . . . . 10 3 . . . . Highest-Rated Group 173 | . . . . . 173 61 . . . . Highest-Rated Ally 29 | . . . . . 29 29 . . . . Total Orders . | . . . . . . . . . . . Ally Attacks 98 | . . . . . 71 27 . . . . Total Damage 1208 | . . . . . 869 339 . . . . Kills 10 | . . . . . 9 1 . . . . Allies Corrupted 1 | . . . . . 1 . . . . . Allies Melted . | . . . . . . . . . . . Intel | -11 -10 -9 -8 -7 -7 -6 -5 -4 -3 -2 ------- Run | Yrd Mat Mat Mat Fac Sto Fac Fac Fac Res Res Robot Analysis Total 1 | . . 1 . . . . . . . . Derelict Logs Recovered . | . . . . . . . . . . . Drone Launches . | . . . . . . . . . . . Drone Recoveries . | . . . . . . . . . . . Exploration | -11 -10 -9 -8 -7 -7 -6 -5 -4 -3 -2 ------------- Run | Yrd Mat Mat Mat Fac Sto Fac Fac Fac Res Res Turns Passed 7538 | 61 306 673 614 282 1434 911 1378 242 798 839 Spaces Moved 4324 | 41 225 320 252 188 956 571 833 114 347 477 Core 15 | 15 . . . . . . . . . . Treads . | . . . . . . . . . . . Legs 2228 | 26 225 320 252 188 956 261 . . . . Wheels 2081 | . . . . . . 310 833 114 347 477 Hover . | . . . . . . . . . . . Flight . | . . . . . . . . . . . Fastest Speed 50 | 50 120 120 190 110 112 112 115 130 130 130 Average Speed 134 | 108 120 179 190 116 117 129 129 130 139 141 Slowest Speed 300 | 300 120 190 190 190 186 187 130 130 175 190 Overloaded Moves . | . . . . . . . . . . . Propulsion Burnouts . | . . . . . . . . . . . Robots Hopped . | . . . . . . . . . . . Cave-ins Triggered . | . . . . . . . . . . . Exploration Rate (%) 25 | 3 51 38 22 4 92 20 23 4 13 13 Regions Visited 10 Branch Regions 1 Pre-discovered Areas . | . . . . . . . . . . . Known Exits Taken 10 | 1 1 1 1 1 1 1 1 1 1 . Unknown Exits Taken . | . . . . . . . . . . . Scrap Searched . | . . . . . . . . . . . Spaces Dug 23 | . . . . . 20 . . . 3 . Terrain Destroyed 129 | . . 4 29 4 67 . 5 . 15 5 Melee . | . . . . . . . . . . . Projectile 46 | . . . 1 2 23 . . . 15 5 AOE 83 | . . 4 28 2 44 . 5 . . . Terrain Rammed . | . . . . . . . . . . . Walls Destroyed . | . . . . . . . . . . . Machines Disabled . | . . . . . . . . . . . Actions | -11 -10 -9 -8 -7 -7 -6 -5 -4 -3 -2 --------- Run | Yrd Mat Mat Mat Fac Sto Fac Fac Fac Res Res Total 5472 | 57 244 379 321 232 1124 671 1030 205 593 616 Wait 501 | . . 13 10 11 46 19 76 79 181 66 Move 4314 | 40 224 319 251 187 955 570 832 113 346 477 Hop . | . . . . . . . . . . . Pick Up 150 | 10 8 9 10 10 15 21 27 5 12 23 Fast Attach 3 | . . . . 1 1 . . . . 1 Attach 66 | 7 1 2 4 3 4 6 19 3 8 9 Detach 10 | . . . . . . 5 5 . . . Swap 77 | . 3 6 8 2 17 9 14 . 9 9 Drop 90 | . 1 10 7 8 15 13 8 3 7 18 Fire 252 | . 7 20 29 10 64 28 49 2 30 13 Melee . | . . . . . . . . . . . Ram . | . . . . . . . . . . . Kick 9 | . . . 2 . 7 . . . . . Crush . | . . . . . . . . . . . Escape Stasis . | . . . . . . . . . . . Rewire . | . . . . . . . . . . . Trap . | . . . . . . . . . . . Miscellaneous . | . . . . . . . . . . . Route ------- -11/Scrapyard -10/Materials (discovered 2 exits: *Mat / *Min) -9/Materials (discovered 2 exits: *Mat / *Min) -8/Materials -7/Factory -7/Storage -6/Factory -5/Factory -4/Factory -3/Research -2/Research History --------- Turn | Location | Event 7 | -11/Scrapyard | Identified exit to Materials 7 | -11/Scrapyard | Discovered exit to Materials (range 15) 62 | -11/Scrapyard | Entered Materials 62 | -10/Materials | Evolved 1 slot: Weapon x1 213 | -10/Materials | Identified exit to Mines 213 | -10/Materials | Discovered exit to Mines (range 15) 349 | -10/Materials | Identified exit to Materials 349 | -10/Materials | Discovered exit to Materials (range 14) 368 | -10/Materials | Entered another Materials area 368 | -9/Materials | Evolved 2 slots: Utility x2 670 | -9/Materials | Build established: Hacker-Skirmisher 849 | -9/Materials | Identified exit to Mines 849 | -9/Materials | Discovered exit to Mines (range 10) 1037 | -9/Materials | Identified exit to Materials 1037 | -9/Materials | Discovered exit to Materials (range 3) 1041 | -9/Materials | Entered another Materials area 1041 | -8/Materials | Evolved 2 slots: Utility x2 1348 | -8/Materials | Build established: Hacker-Gunner 1649 | -8/Materials | Identified exit to Factory 1649 | -8/Materials | Discovered exit to Factory (range 3) 1655 | -8/Materials | Entered Factory 1655 | -7/Factory | Evolved 2 slots: Propulsion x2 1692 | -7/Factory | Identified exit to DSF 1726 | -7/Factory | Build established: Scavenger-Skirmisher 1873 | -7/Factory | Identified exit to Storage 1873 | -7/Factory | Discovered exit to Storage (range 15) 1937 | -7/Factory | Entered Storage 2134 | -7/Storage | Build established: Hacker-Skirmisher 2362 | -7/Storage | Repaired Imp. Carbon-fiber Leg 2476 | -7/Storage | Assisted by bots powering up and referring to "LRC-V3" 2760 | -7/Storage | Found Prototype Launcher 2761 | -7/Storage | Identified Rocket Array 2787 | -7/Storage | Build established: Commander-Skirmisher 3332 | -7/Storage | Identified exit to Factory 3332 | -7/Storage | Discovered exit to Factory (range 12) 3371 | -7/Storage | Entered Factory 3371 | -6/Factory | Accompanied by 3 allies 3371 | -6/Factory | Evolved 2 slots: Utility x2 3860 | -6/Factory | Build established: Hacker-Skirmisher 4258 | -6/Factory | Identified exit to Factory 4258 | -6/Factory | Discovered exit to Factory (range 13) 4282 | -6/Factory | Entered another Factory area 4282 | -5/Factory | Evolved 2 slots: Utility x2 5505 | -5/Factory | Identified exit to Factory 5505 | -5/Factory | Discovered exit to Factory (range 16) 5660 | -5/Factory | Entered another Factory area 5660 | -4/Factory | Evolved 2 slots: Power x1, Weapon x1 5841 | -4/Factory | Identified exit to Research 5841 | -4/Factory | Discovered exit to Research (range 20) 5902 | -4/Factory | Entered Research 5902 | -3/Research | Evolved 2 slots: Utility x2 6307 | -3/Research | Spotted B-86 Titan 6581 | -3/Research | Identified exit to Research 6581 | -3/Research | Discovered exit to Research (range 6) 6650 | -3/Research | System corruption reached 10% 6689 | -3/Research | Lost 5 parts (1p1n2u1w) 6700 | -3/Research | Entered another Research area 6700 | -2/Research | Evolved 2 slots: Utility x2 7000 | -2/Research | Build established: Hacker-Gunner 7227 | -2/Research | Repaired Arm. Huge Wheel 7435 | -2/Research | Found Gamma Bomb Array 7509 | -2/Research | Garrison activated, responded to threat 7539 | -2/Research | Self-destructed Last Messages --------------- 07518_ Overheating: Short circuit. 07519_ Overheating: Adv. Signal Interpreter damaged (-5). 07520_ Overheating: Core damaged (-275). 07522_ K-01 Serf collects debris. 07532_ Overheating: Matter decay (-49). 07534_ Adv. Heat Sink melted. 07534_ Lgt. Quantum Reactor melted. 07534_ Adv. Heat Sink melted. 07534_ Phase Gun melted. 07534_ G-73 Enforcer destroyed. 07534_ K-01 Serf collects debris. 07535_ Overheating: Matter decay (-15). 07536_ Power failure, Lgt. Quantum Reactor shutdown. 07537_ K-01 Serf collects debris. 07538_ Arm. Huge Wheel broken. 07538_ Overheating: Short circuit. 07539_ Overheating: System interference. 07539_ Imp. Target Analyzer temporarily disabled. 07539_ Enh. Nova Cannon temporarily disabled. 07539_ Adv. Sensor Array temporarily disabled. Map ----- +----------------------------------------------------+ | ?????????????????????????????????????????????????? | | ?????????????????????????????????????????????????? | | ?????????????????????????????????????????????????? | | ?????????????????????????????????????????????????? | | ?????????????????????????????????????????????????? | | ?????????????????????????????????????????????????? | | ?????????????????????????????????????????????????? | | ?????????????????????????????????????????????????? | | ?????????????????????????????????????????????????? | | ?????????????????????????????????????????????????? | | ?????????????????????????????????????????????????? | | ?????????????????????????????????????????????????? | | ?????????????????????????????????????????????????? | | ?????????????????????????????????????????????????? | | ?????????????????? ????????????????????????????? | | ?????????????????# ????????????????????????????? | | ?????????????????# ????????????????????????????? | | ?????????????????# #???????????????????????????? | | ?????????????????# #???????????????????????????? | | ?????????????????# #???????????????????????????? | | ?????????????????# #???????????????????????????? | | ?????????????????# #???????????????????????????? | | ?????????????????# #?######????????????????????? | | ??????+#######???# #?# #????????????????????? | | ??????? #### ### #????????????????????? | | ?????? # @ #????????????????????? | | ?????? #% k#????????????????????? | | ??????? ^ %+ k #????????????????????? | | ?????????# """^ # #????????????????????? | | ?????????# ""T"" # #????????????????????? | | ??????#### "" "" ## #????????????????????? | | ? ## #????????????????????? | | ? ##;/###????????????????????? | | ? ###p#??????????????????????? | | ?? ##### #?? #??????????????????????? | | ?? ###+###????### #?? #??????????????????????? | | ???" ??? ?????????# #?? #??????????????????????? | | ???????# ??????????# #?? ???????????????????????? | | ???????# ???????????# #??p???????????????????????? | | ???????#????????????# #?? ???????????????????????? | | ????????????????????# ###+###????????????????????? | | ????????????????????# ## #????????????????????? | | ????????????????????# ## #????????????????????? | | ????????????????????# ## #????????????????????? | | ????? ############## ## #????????????????????? | | ????? + ]#????????????????????? | | ???? #][]]#????????????????????? | | ???? #*[ #????????????????????? | | ???? /[[ #????????????????????? | | ???????####+####### #### #????????????????????? | +----------------------------------------------------+ Best States ------------- Heat Dissipation 134 Energy Generation 45 Energy Capacity 600 Matter Stores 495 Matter Capacity 500 Sight Range 20 Robot Scan Range 16 Terrain Scan Range 20 Terrain Scan Density 210 Jamming Range 12 Base Temperature (-) 150 Armor Coverage 825 Resistance: KI 35 Resistance: TH 35 Resistance: EX 35 Resistance: EM 35 Resistance: I 35 Resistance: S 35 Resistance: P 35 Evasion (%) 55 Targeting Accuracy 5 Target Analysis 11 Energy Filtering 50 Offensive Hacking 20 Item Schematics ----------------- None Robot Schematics ------------------ None Fabricated ------------ Nothing Alien Tech Used ----------------- None Achievements -------------- Everything Is Under Control Omniscient Cartographer Challenges ------------ None Game ------ Seed AbsorptionHardenedCompactor Manual? 0 Play Time 01:36:12 Cumulative 10.6 hours Start 2024.10.20 @ 20:58:15 End 2024.10.20 @ 22:45:34 Sessions 1 Manual Loads 0 Difficulty Explorer Special Mode None Game No. 9 Rogue 0 Adventurer 0 Explorer 9 Win Type - Total 0 Types 0/0/0/0/0/0/0/0/0 Lore% 10 Gallery% 21 Achievement% 21 Wizard Run 0 Options --------- Layout 0 ASCII 0 Keyboard 0 Movement Numpad Keybinds 0 Fullscreen 1 Font 24/Tamsyn Map View 76x50 Zoom Use 0% Tactical HUD 1 Map Filters NONE Filters NONE Steam 1 RUN: 491a021c-38ba-46ff-8a1e-abffc09e5925